[Event "*** Titled Tuesday 3|2 Blitz"]
[Site "Chess.com"]
[Date "2015.08.04"]
[Round "9"]
[White "GMHess"]
[Black "Zlatan56"]
[Result "1/2-1/2"]
[WhiteElo "2546"]
[BlackElo "2485"]
[TimeControl "180+2"]
[EndTime "13:28:05 PDT"]
[Termination "Game drawn by repetition"]

1. c4 {[%clk 0:03:01.9]} 1... e5 {[%clk 0:02:56.8]} 2. Nc3 {[%clk 0:03:02.4]}
2... Nf6 {[%clk 0:02:54.4]} 3. Nf3 {[%clk 0:03:03.4]} 3... Nc6 {[%clk
0:02:54.9]} 4. e3 {[%clk 0:03:04.3]} 4... Bb4 {[%clk 0:02:52.1]} 5. Qc2 {[%clk
0:03:05.5]} 5... d6 {[%clk 0:02:50.6]} 6. Be2 {[%clk 0:02:54.7]} 6... O-O {[%clk
0:02:49.5]} 7. a3 {[%clk 0:02:48.2]} 7... Bxc3 {[%clk 0:02:49.8]} 8. Qxc3 {[%clk
0:02:44.8]} 8... e4 {[%clk 0:02:50.8]} 9. Nd4 {[%clk 0:02:38.8]} 9... Ne5 {[%clk
0:02:51.6]} 10. b4 {[%clk 0:02:34.2]} 10... b6 {[%clk 0:02:46.9]} 11. f4 {[%clk
0:02:23.6]} 11... exf3 {[%clk 0:02:44.7]} 12. Nxf3 {[%clk 0:02:24.5]} 12... Ne4
{[%clk 0:02:14.2]} 13. Qd4 {[%clk 0:02:11.9]} 13... Bb7 {[%clk 0:02:03.7]} 14.
O-O {[%clk 0:01:43.3]} 14... Qe7 {[%clk 0:01:42.2]} 15. d3 {[%clk 0:01:06.2]}
15... c5 {[%clk 0:01:42.2]} 16. Qb2 {[%clk 0:01:04.8]} 16... Ng5 {[%clk
0:01:27.2]} 17. Nxe5 {[%clk 0:00:59.3]} 17... dxe5 {[%clk 0:01:20.9]} 18. e4
{[%clk 0:00:54.1]} 18... f6 {[%clk 0:01:00.3]} 19. Bxg5 {[%clk 0:00:50.9]} 19...
fxg5 {[%clk 0:01:02.2]} 20. b5 {[%clk 0:00:34]} 20... g6 {[%clk 0:00:56.6]} 21.
a4 {[%clk 0:00:34.4]} 21... Qd6 {[%clk 0:00:45.2]} 22. a5 {[%clk 0:00:27.3]}
22... Rxf1+ {[%clk 0:00:39.5]} 23. Bxf1 {[%clk 0:00:26.4]} 23... Rf8 {[%clk
0:00:38.6]} 24. axb6 {[%clk 0:00:21.2]} 24... axb6 {[%clk 0:00:40.5]} 25. h3
{[%clk 0:00:14.3]} 25... Bc8 {[%clk 0:00:40.4]} 26. Be2 {[%clk 0:00:10.8]} 26...
h5 {[%clk 0:00:40.5]} 27. Rf1 {[%clk 0:00:11.2]} 27... Rf4 {[%clk 0:00:40.9]}
28. Qa1 {[%clk 0:00:09.9]} 28... Qb8 {[%clk 0:00:27.7]} 29. g3 {[%clk
0:00:07.2]} 29... Rxf1+ {[%clk 0:00:26.8]} 30. Bxf1 {[%clk 0:00:09.1]} 30... Kg7
{[%clk 0:00:26.5]} 31. Qc1 {[%clk 0:00:08.9]} 31... Kf6 {[%clk 0:00:25.2]} 32.
h4 {[%clk 0:00:10.3]} 32... gxh4 {[%clk 0:00:24.2]} 33. gxh4 {[%clk 0:00:12.2]}
33... Qd6 {[%clk 0:00:24.8]} 34. Qh6 {[%clk 0:00:11.3]} 34... Be6 {[%clk
0:00:20.3]} 35. Kg2 {[%clk 0:00:07.3]} 35... Qd4 {[%clk 0:00:19.4]} 36. Qf8+
{[%clk 0:00:06.8]} 36... Bf7 {[%clk 0:00:19.7]} 37. Qb8 {[%clk 0:00:06.4]} 37...
Qb2+ {[%clk 0:00:18.6]} 38. Kg3 {[%clk 0:00:05.9]} 38... Qd2 {[%clk 0:00:19.4]}
39. Qd6+ {[%clk 0:00:05.8]} 39... Be6 {[%clk 0:00:19.2]} 40. Qf8+ {[%clk
0:00:07.2]} 40... Bf7 {[%clk 0:00:20.4]} 41. Qd6+ {[%clk 0:00:08.5]} 41... Be6
{[%clk 0:00:20.9]} 42. Qf8+ {[%clk 0:00:09.9]} 42... Bf7 {[%clk 0:00:22]} 43.
Qd6+ {[%clk 0:00:08]} 43... Be6 {[%clk 0:00:20.7]} 44. Qd8+ {[%clk 0:00:07.1]}
44... Kf7 {[%clk 0:00:18.5]} 45. Qc7+ {[%clk 0:00:08.2]} 45... Kf6 {[%clk
0:00:17.8]} 46. Qd8+ {[%clk 0:00:09.2]} 46... Kf7 {[%clk 0:00:18.6]} 47. Qc7+
{[%clk 0:00:10.3]} 47... Kf6 {[%clk 0:00:19.4]} 48. Qd8+ {[%clk 0:00:09.2]}
1/2-1/2

[Event "*** Titled Tuesday 3|2 Blitz"]
[Site "Chess.com"]
[Date "2015.08.04"]
[Round "9"]
[White "stepanosinovsky"]
[Black "fpawn"]
[Result "1-0"]
[WhiteElo "2259"]
[BlackElo "2091"]
[TimeControl "180+2"]
[EndTime "13:28:21 PDT"]
[Termination "stepanosinovsky won by resignation"]

1. g3 {[%clk 0:03:01.9]} 1... d5 {[%clk 0:03:00.1]} 2. Bg2 {[%clk 0:03:02.6]}
2... c6 {[%clk 0:02:56.8]} 3. d3 {[%clk 0:03:04.5]} 3... Nf6 {[%clk 0:02:56.3]}
4. Nd2 {[%clk 0:03:06.4]} 4... e6 {[%clk 0:02:56.3]} 5. e4 {[%clk 0:03:07.6]}
5... dxe4 {[%clk 0:02:51.3]} 6. dxe4 {[%clk 0:03:09.5]} 6... Nbd7 {[%clk
0:02:48.8]} 7. Ngf3 {[%clk 0:03:10.4]} 7... Be7 {[%clk 0:02:47.1]} 8. O-O {[%clk
0:03:11.2]} 8... O-O {[%clk 0:02:44]} 9. c3 {[%clk 0:03:12.2]} 9... e5 {[%clk
0:02:43.5]} 10. Nc4 {[%clk 0:03:12.3]} 10... Qc7 {[%clk 0:02:44.4]} 11. a4
{[%clk 0:03:13.5]} 11... Nxe4 {[%clk 0:02:36.9]} 12. Re1 {[%clk 0:02:53]} 12...
Nef6 {[%clk 0:02:32.5]} 13. Nfxe5 {[%clk 0:02:51.9]} 13... Nxe5 {[%clk
0:02:33.4]} 14. Nxe5 {[%clk 0:02:53.3]} 14... Bd6 {[%clk 0:02:30.1]} 15. Nc4
{[%clk 0:02:52.3]} 15... Rd8 {[%clk 0:02:20.4]} 16. Nxd6 {[%clk 0:02:51.9]}
16... Qxd6 {[%clk 0:02:21.5]} 17. Qc2 {[%clk 0:02:52.6]} 17... Qd3 {[%clk
0:02:13.2]} 18. Qxd3 {[%clk 0:02:40.3]} 18... Rxd3 {[%clk 0:02:13.9]} 19. a5
{[%clk 0:02:39.5]} 19... a6 {[%clk 0:02:12]} 20. Bg5 {[%clk 0:02:33.6]} 20...
Be6 {[%clk 0:02:11.6]} 21. Bxf6 {[%clk 0:02:31.7]} 21... gxf6 {[%clk 0:02:12.5]}
22. Rad1 {[%clk 0:02:33.2]} 22... Rad8 {[%clk 0:02:12.5]} 23. Bf3 {[%clk
0:02:34.2]} 23... Kf8 {[%clk 0:02:04.3]} 24. Kf1 {[%clk 0:02:30.9]} 24... Ke7
{[%clk 0:02:01.6]} 25. Rxd3 {[%clk 0:02:29.4]} 25... Rxd3 {[%clk 0:02:01.5]} 26.
Ke2 {[%clk 0:02:17.7]} 26... Rd8 {[%clk 0:01:33.6]} 27. Ke3 {[%clk 0:02:18.1]}
27... Rd7 {[%clk 0:01:25]} 28. Ra1 {[%clk 0:02:17.2]} 28... Kd6 {[%clk
0:01:25.2]} 29. Ra4 {[%clk 0:02:17.3]} 29... Bf5 {[%clk 0:01:09.2]} 30. Rd4+
{[%clk 0:02:08.6]} 30... Ke7 {[%clk 0:01:09]} 31. Rb4 {[%clk 0:02:00.2]} 31...
Kd6 {[%clk 0:01:04.6]} 32. Rf4 {[%clk 0:01:53.2]} 32... Ke5 {[%clk 0:01:01.5]}
33. Rb4 {[%clk 0:01:36.8]} 33... Bg6 {[%clk 0:00:58.9]} 34. Bg4 {[%clk
0:01:33.2]} 34... Re7 {[%clk 0:00:52.5]} 35. Rd4 {[%clk 0:01:20.5]} 35... f5
{[%clk 0:00:41]} 36. Bf3 {[%clk 0:01:20]} 36... Ke6 {[%clk 0:00:34.1]} 37. Kf4
{[%clk 0:01:18.7]} 37... f6 {[%clk 0:00:28]} 38. h4 {[%clk 0:00:58.2]} 38... h6
{[%clk 0:00:26.9]} 39. Bd1 {[%clk 0:00:42.9]} 39... Rd7 {[%clk 0:00:19.3]} 40.
Bb3+ {[%clk 0:00:41.9]} 40... Ke7 {[%clk 0:00:20]} 41. Rxd7+ {[%clk 0:00:24.4]}
41... Kxd7 {[%clk 0:00:21.9]} 42. Bc2 {[%clk 0:00:25.4]} 42... Ke6 {[%clk
0:00:22.6]} 43. g4 {[%clk 0:00:24.8]} 43... Kd6 {[%clk 0:00:18]} 44. Bxf5 {[%clk
0:00:24.1]} 44... Bf7 {[%clk 0:00:17.8]} 45. Bd3 {[%clk 0:00:20.9]} 45... Be6
{[%clk 0:00:17.1]} 46. g5 {[%clk 0:00:18]} 46... fxg5+ {[%clk 0:00:16.7]} 47.
hxg5 {[%clk 0:00:19.4]} 47... hxg5+ {[%clk 0:00:17.8]} 48. Kxg5 {[%clk
0:00:21.1]} 48... Ke5 {[%clk 0:00:18]} 49. f4+ {[%clk 0:00:21.9]} 49... Kd6
{[%clk 0:00:17.3]} 50. f5 {[%clk 0:00:21.5]} 50... Bf7 {[%clk 0:00:13.8]} 51.
Kf6 {[%clk 0:00:22.6]} 51... Bd5 {[%clk 0:00:14.3]} 52. Kg7 {[%clk 0:00:23.3]}
52... Ke5 {[%clk 0:00:15.2]} 53. f6 {[%clk 0:00:24.4]} 1-0

[Event "*** Titled Tuesday 3|2 Blitz"]
[Site "Chess.com"]
[Date "2015.08.04"]
[Round "9"]
[White "GMG"]
[Black "GregShahade"]
[Result "1/2-1/2"]
[WhiteElo "2398"]
[BlackElo "2293"]
[TimeControl "180+2"]
[EndTime "13:28:26 PDT"]
[Termination "Game drawn by repetition"]

1. Nf3 {[%clk 0:03:01.9]} 1... c5 {[%clk 0:02:02.6]} 2. c4 {[%clk 0:03:00.3]}
2... g6 {[%clk 0:02:00.3]} 3. e4 {[%clk 0:02:59.2]} 3... Nc6 {[%clk 0:01:57.7]}
4. d4 {[%clk 0:02:59.2]} 4... cxd4 {[%clk 0:01:50]} 5. Nxd4 {[%clk 0:02:58.8]}
5... d6 {[%clk 0:01:48]} 6. Be3 {[%clk 0:02:59.5]} 6... Nf6 {[%clk 0:01:44.4]}
7. f3 {[%clk 0:02:57]} 7... Bg7 {[%clk 0:01:44.2]} 8. Nc3 {[%clk 0:02:54]} 8...
O-O {[%clk 0:01:43.3]} 9. Qd2 {[%clk 0:02:54.1]} 9... Bd7 {[%clk 0:01:43.2]} 10.
Be2 {[%clk 0:02:53.6]} 10... Nxd4 {[%clk 0:01:43]} 11. Bxd4 {[%clk 0:02:54]}
11... Bc6 {[%clk 0:01:44.2]} 12. O-O {[%clk 0:02:53.9]} 12... Qa5 {[%clk
0:01:40]} 13. Rfc1 {[%clk 0:02:44]} 13... Rfc8 {[%clk 0:01:40]} 14. b3 {[%clk
0:02:39.5]} 14... Nd7 {[%clk 0:01:40.7]} 15. Be3 {[%clk 0:02:39.6]} 15... Nc5
{[%clk 0:01:38.8]} 16. Rab1 {[%clk 0:02:36.9]} 16... Qd8 {[%clk 0:01:36.8]} 17.
b4 {[%clk 0:02:34.4]} 17... Ne6 {[%clk 0:01:33.4]} 18. Nd5 {[%clk 0:02:26.9]}
18... Bxd5 {[%clk 0:01:12]} 19. exd5 {[%clk 0:02:26.7]} 19... Nf8 {[%clk
0:01:11.4]} 20. c5 {[%clk 0:02:26.5]} 20... a5 {[%clk 0:01:02.6]} 21. c6 {[%clk
0:02:12.1]} 21... bxc6 {[%clk 0:01:01.2]} 22. dxc6 {[%clk 0:02:07.5]} 22... axb4
{[%clk 0:01:01.2]} 23. Rxb4 {[%clk 0:02:08.9]} 23... Qa5 {[%clk 0:00:56.2]} 24.
a4 {[%clk 0:01:56.7]} 24... Ne6 {[%clk 0:00:48.3]} 25. Bb5 {[%clk 0:01:55.9]}
25... d5 {[%clk 0:00:43.2]} 26. Rb3 {[%clk 0:01:49.7]} 26... Qd8 {[%clk
0:00:22.1]} 27. Qb4 {[%clk 0:01:44.1]} 27... d4 {[%clk 0:00:21.8]} 28. Bd2
{[%clk 0:01:43.6]} 28... Be5 {[%clk 0:00:22.6]} 29. g3 {[%clk 0:01:41.5]} 29...
Qc7 {[%clk 0:00:22.6]} 30. Kg2 {[%clk 0:01:41.3]} 30... Bd6 {[%clk 0:00:23.6]}
31. Qc4 {[%clk 0:01:41.8]} 31... h5 {[%clk 0:00:24.2]} 32. Re1 {[%clk
0:01:42.1]} 32... Nc5 {[%clk 0:00:22.9]} 33. Rbb1 {[%clk 0:01:39.1]} 33... e5
{[%clk 0:00:24]} 34. Qd5 {[%clk 0:01:12.3]} 34... Ne6 {[%clk 0:00:24.2]} 35. f4
{[%clk 0:01:06.1]} 35... Rd8 {[%clk 0:00:20.4]} 36. fxe5 {[%clk 0:01:00.5]}
36... Bb4 {[%clk 0:00:16.2]} 37. Qa2 {[%clk 0:01:01.4]} 37... Bc3 {[%clk
0:00:17.4]} 38. Qc2 {[%clk 0:00:58.8]} 38... Bxd2 {[%clk 0:00:16.1]} 39. Qxd2
{[%clk 0:01:00.7]} 39... Rd5 {[%clk 0:00:17.6]} 40. Qd3 {[%clk 0:00:54.6]} 40...
Rxe5 {[%clk 0:00:17.6]} 41. Rxe5 {[%clk 0:00:43.5]} 41... Qxe5 {[%clk
0:00:19.5]} 42. Rc1 {[%clk 0:00:44.1]} 42... Rd8 {[%clk 0:00:19]} 43. Qc4 {[%clk
0:00:34.1]} 43... d3 {[%clk 0:00:15.7]} 44. c7 {[%clk 0:00:33.2]} 44... Qe2+
{[%clk 0:00:16.2]} 45. Kg1 {[%clk 0:00:30.6]} 45... Qe3+ {[%clk 0:00:15.7]} 46.
Kg2 {[%clk 0:00:30.2]} 46... Qe2+ {[%clk 0:00:12]} 47. Kg1 {[%clk 0:00:30.3]}
47... Qe3+ {[%clk 0:00:12]} 48. Kh1 {[%clk 0:00:27.7]} 48... Qf3+ {[%clk
0:00:10]} 49. Kg1 {[%clk 0:00:28.3]} 49... Qe3+ {[%clk 0:00:09.2]} 1/2-1/2

[Event "*** Titled Tuesday 3|2 Blitz"]
[Site "Chess.com"]
[Date "2015.08.04"]
[Round "9"]
[White "Fh2411"]
[Black "rhungaski"]
[Result "0-1"]
[WhiteElo "2173"]
[BlackElo "2464"]
[TimeControl "180+2"]
[EndTime "13:28:33 PDT"]
[Termination "rhungaski won on time"]

1. d4 {[%clk 0:03:01.9]} 1... d5 {[%clk 0:02:59.9]} 2. c4 {[%clk 0:02:57.9]}
2... dxc4 {[%clk 0:03:01.8]} 3. e3 {[%clk 0:02:57.7]} 3... Nf6 {[%clk
0:03:01.7]} 4. Bxc4 {[%clk 0:02:58.2]} 4... e6 {[%clk 0:03:03.6]} 5. Nf3 {[%clk
0:02:58.7]} 5... a6 {[%clk 0:03:05.5]} 6. a4 {[%clk 0:02:52]} 6... c5 {[%clk
0:03:07.4]} 7. O-O {[%clk 0:02:52.3]} 7... Nc6 {[%clk 0:03:06.6]} 8. Nc3 {[%clk
0:02:52.9]} 8... Be7 {[%clk 0:03:07.6]} 9. Ne5 {[%clk 0:02:35.3]} 9... cxd4
{[%clk 0:02:50]} 10. Nxc6 {[%clk 0:02:31.9]} 10... bxc6 {[%clk 0:02:51.9]} 11.
exd4 {[%clk 0:02:32.7]} 11... a5 {[%clk 0:02:48.6]} 12. Be3 {[%clk 0:02:18.2]}
12... Ba6 {[%clk 0:02:46]} 13. b3 {[%clk 0:02:18.3]} 13... Bb4 {[%clk
0:02:38.9]} 14. Rc1 {[%clk 0:02:16.6]} 14... O-O {[%clk 0:02:32.9]} 15. Qe2
{[%clk 0:02:03.8]} 15... Bb7 {[%clk 0:02:28.6]} 16. Bg5 {[%clk 0:02:03.2]} 16...
h6 {[%clk 0:02:24.3]} 17. Bxf6 {[%clk 0:01:51.4]} 17... Qxf6 {[%clk 0:02:26.2]}
18. Rfd1 {[%clk 0:01:43.3]} 18... c5 {[%clk 0:02:26]} 19. Ne4 {[%clk 0:01:38.4]}
19... Qg6 {[%clk 0:02:26.2]} 20. Ng3 {[%clk 0:01:30.2]} 20... Rfd8 {[%clk
0:02:02.7]} 21. dxc5 {[%clk 0:01:24.8]} 21... Bxc5 {[%clk 0:02:04.6]} 22. Rxd8+
{[%clk 0:01:18.5]} 22... Rxd8 {[%clk 0:02:05.7]} 23. Rd1 {[%clk 0:01:19.4]}
23... Rxd1+ {[%clk 0:01:52]} 24. Qxd1 {[%clk 0:01:18.4]} 24... Qf6 {[%clk
0:01:53.3]} 25. Qe1 {[%clk 0:01:18.2]} 25... Qd4 {[%clk 0:01:49.4]} 26. h3
{[%clk 0:01:14.5]} 26... Bb6 {[%clk 0:01:32.5]} 27. Nf1 {[%clk 0:01:04.4]} 27...
g6 {[%clk 0:01:24.5]} 28. Qe2 {[%clk 0:00:53.8]} 28... Kg7 {[%clk 0:01:19.8]}
29. Nd2 {[%clk 0:00:45.1]} 29... Qa1+ {[%clk 0:01:12.9]} 30. Nf1 {[%clk
0:00:39.5]} 30... h5 {[%clk 0:01:06.2]} 31. Bd3 {[%clk 0:00:33.4]} 31... Bd5
{[%clk 0:00:55.4]} 32. Bc4 {[%clk 0:00:33.2]} 32... Bb7 {[%clk 0:00:55.8]} 33.
Bd3 {[%clk 0:00:33.6]} 33... h4 {[%clk 0:00:53.8]} 34. Be4 {[%clk 0:00:28.9]}
34... Qe5 {[%clk 0:00:53]} 35. Nd2 {[%clk 0:00:11.5]} 35... f5 {[%clk 0:00:48]}
36. Nc4 {[%clk 0:00:12.2]} 36... Qa1+ {[%clk 0:00:46.6]} 37. Qf1 {[%clk
0:00:13.4]} 37... Qxf1+ {[%clk 0:00:27.6]} 38. Kxf1 {[%clk 0:00:11.7]} 38... Ba6
{[%clk 0:00:29.3]} 39. Bc6 {[%clk 0:00:10.1]} 39... Bc7 {[%clk 0:00:28.8]} 40.
Bb5 {[%clk 0:00:09]} 40... Bb7 {[%clk 0:00:29.7]} 41. Bd7 {[%clk 0:00:08.8]}
41... Kf6 {[%clk 0:00:29]} 42. f3 {[%clk 0:00:09.8]} 42... e5 {[%clk 0:00:27.1]}
43. Bb5 {[%clk 0:00:10.1]} 43... g5 {[%clk 0:00:27.2]} 44. Ne3 {[%clk
0:00:07.1]} 44... e4 {[%clk 0:00:25.4]} 45. fxe4 {[%clk 0:00:07]} 45... Bxe4
{[%clk 0:00:24.5]} 46. Bc4 {[%clk 0:00:06.9]} 46... Ke5 {[%clk 0:00:24.4]} 47.
Nd1 {[%clk 0:00:02.1]} 47... Kd4 {[%clk 0:00:21.3]} 48. Nf2 {[%clk 0:00:03]}
48... Ke3 {[%clk 0:00:18.3]} 0-1

[Event "*** Titled Tuesday 3|2 Blitz"]
[Site "Chess.com"]
[Date "2015.08.04"]
[Round "9"]
[White "MFBerna"]
[Black "josiwales"]
[Result "1-0"]
[WhiteElo "2107"]
[BlackElo "2053"]
[TimeControl "180+2"]
[EndTime "13:29:11 PDT"]
[Termination "MFBerna won by resignation"]

1. e4 {[%clk 0:03:01.9]} 1... c5 {[%clk 0:02:38.8]} 2. Nf3 {[%clk 0:03:01.8]}
2... Nc6 {[%clk 0:02:40.2]} 3. d4 {[%clk 0:03:03.1]} 3... cxd4 {[%clk
0:02:42.1]} 4. Nxd4 {[%clk 0:03:04.9]} 4... g6 {[%clk 0:02:43.3]} 5. Nc3 {[%clk
0:03:03.7]} 5... Bg7 {[%clk 0:02:44.5]} 6. Be3 {[%clk 0:03:04.9]} 6... Nf6
{[%clk 0:02:45.8]} 7. Bc4 {[%clk 0:03:03.2]} 7... O-O {[%clk 0:02:46.7]} 8. Bb3
{[%clk 0:03:04.7]} 8... d6 {[%clk 0:02:47.7]} 9. f3 {[%clk 0:02:49]} 9... Bd7
{[%clk 0:02:44.8]} 10. Qd2 {[%clk 0:02:48.1]} 10... Nxd4 {[%clk 0:02:45.9]} 11.
Bxd4 {[%clk 0:02:48.6]} 11... b5 {[%clk 0:02:47.3]} 12. O-O {[%clk 0:02:40.5]}
12... a5 {[%clk 0:02:46.7]} 13. a4 {[%clk 0:02:31.8]} 13... b4 {[%clk
0:02:44.7]} 14. Nd1 {[%clk 0:02:30.8]} 14... Be6 {[%clk 0:02:40.6]} 15. Nf2
{[%clk 0:02:16.2]} 15... Bxb3 {[%clk 0:02:37.9]} 16. cxb3 {[%clk 0:02:18.1]}
16... Nd7 {[%clk 0:02:33.6]} 17. Bxg7 {[%clk 0:01:58.9]} 17... Kxg7 {[%clk
0:02:35.5]} 18. Qd4+ {[%clk 0:01:58.6]} 18... Kg8 {[%clk 0:02:34]} 19. Nd3
{[%clk 0:01:54.7]} 19... Qb6 {[%clk 0:02:31.1]} 20. Qxb6 {[%clk 0:01:52.7]}
20... Nxb6 {[%clk 0:02:33]} 21. Rac1 {[%clk 0:01:51.9]} 21... Rac8 {[%clk
0:02:34]} 22. Kf2 {[%clk 0:01:48.9]} 22... f6 {[%clk 0:02:28.3]} 23. Ke3 {[%clk
0:01:47.7]} 23... Kf7 {[%clk 0:02:27.9]} 24. Kd4 {[%clk 0:01:44.5]} 24... e5+
{[%clk 0:02:28.3]} 25. Ke3 {[%clk 0:01:43.9]} 25... Ke6 {[%clk 0:02:29.1]} 26.
f4 {[%clk 0:01:35.8]} 26... Rxc1 {[%clk 0:02:08.4]} 27. Rxc1 {[%clk 0:01:35.5]}
27... Rc8 {[%clk 0:02:09.1]} 28. Rxc8 {[%clk 0:01:36.1]} 28... Nxc8 {[%clk
0:02:06.5]} 29. g4 {[%clk 0:01:08.4]} 29... Nb6 {[%clk 0:02:00.7]} 30. h4 {[%clk
0:00:58.2]} 30... h6 {[%clk 0:01:42.7]} 31. f5+ {[%clk 0:00:19.5]} 31... gxf5
{[%clk 0:01:41.2]} 32. gxf5+ {[%clk 0:00:21.1]} 32... Ke7 {[%clk 0:01:41.5]} 33.
Kf3 {[%clk 0:00:16.7]} 33... h5 {[%clk 0:01:41]} 34. Ke3 {[%clk 0:00:15.8]}
34... Kd7 {[%clk 0:01:41.5]} 35. Nf2 {[%clk 0:00:14.9]} 35... Kc6 {[%clk
0:01:39.7]} 36. Nh1 {[%clk 0:00:15.7]} 36... d5 {[%clk 0:01:40.4]} 37. Ng3
{[%clk 0:00:16.5]} 37... dxe4 {[%clk 0:01:35.8]} 38. Kxe4 {[%clk 0:00:18.4]}
38... Nd7 {[%clk 0:01:33.3]} 39. Nxh5 {[%clk 0:00:18.1]} 39... Kd6 {[%clk
0:01:33.5]} 40. Kd3 {[%clk 0:00:13.6]} 40... Kd5 {[%clk 0:01:30.3]} 41. Ke3
{[%clk 0:00:11.4]} 41... Kd6 {[%clk 0:01:22.9]} 42. Ng3 {[%clk 0:00:09.8]} 42...
Ke7 {[%clk 0:01:16.8]} 43. h5 {[%clk 0:00:10.2]} 43... Nc5 {[%clk 0:01:15.9]}
44. h6 {[%clk 0:00:08.8]} 44... Kf7 {[%clk 0:01:16.5]} 45. Nh5 {[%clk
0:00:09.4]} 45... Kg8 {[%clk 0:01:09.2]} 46. Nxf6+ {[%clk 0:00:10.2]} 46... Kh8
{[%clk 0:01:10.2]} 47. Ng4 {[%clk 0:00:08.7]} 47... Kh7 {[%clk 0:01:06.6]} 48.
f6 {[%clk 0:00:07.5]} 48... Ne6 {[%clk 0:00:59.7]} 49. Ke4 {[%clk 0:00:06]}
49... Ng5+ {[%clk 0:00:59]} 50. Kxe5 {[%clk 0:00:07]} 50... Nf7+ {[%clk
0:00:59.5]} 51. Ke6 {[%clk 0:00:08.6]} 51... Nh8 {[%clk 0:00:56.8]} 52. f7
{[%clk 0:00:09.2]} 52... Ng6 {[%clk 0:00:57.2]} 53. Kd7 {[%clk 0:00:06.7]} 53...
Kh8 {[%clk 0:00:52.2]} 54. Kc6 {[%clk 0:00:07.7]} 54... Kh7 {[%clk 0:00:51.6]}
55. Kb5 {[%clk 0:00:09]} 55... Nf8 {[%clk 0:00:51.1]} 56. Kxa5 {[%clk
0:00:09.3]} 56... Nd7 {[%clk 0:00:52.1]} 57. Kxb4 {[%clk 0:00:09.9]} 57... Nf8
{[%clk 0:00:44.1]} 58. Kb5 {[%clk 0:00:10]} 58... Ne6 {[%clk 0:00:44.9]} 59. a5
{[%clk 0:00:09.8]} 59... Nd4+ {[%clk 0:00:45.1]} 60. Kb6 {[%clk 0:00:10.6]}
60... Ne6 {[%clk 0:00:39.5]} 61. a6 {[%clk 0:00:11.5]} 61... Nf8 {[%clk
0:00:37.2]} 62. a7 {[%clk 0:00:12.5]} 62... Nd7+ {[%clk 0:00:36.8]} 63. Kc7
{[%clk 0:00:13.7]} 63... Nb8 {[%clk 0:00:34]} 64. axb8=Q {[%clk 0:00:12.2]} 1-0

[Event "*** Titled Tuesday 3|2 Blitz"]
[Site "Chess.com"]
[Date "2015.08.04"]
[Round "9"]
[White "hansen"]
[Black "DeviatkinAndrey"]
[Result "1-0"]
[WhiteElo "2507"]
[BlackElo "2528"]
[TimeControl "180+2"]
[EndTime "13:29:19 PDT"]
[Termination "hansen won by resignation"]

1. e4 {[%clk 0:02:05.8]} 1... c6 {[%clk 0:02:59.8]} 2. d4 {[%clk 0:02:04.3]}
2... d5 {[%clk 0:03:01.1]} 3. e5 {[%clk 0:02:04.4]} 3... Bf5 {[%clk 0:03:02.1]}
4. Nf3 {[%clk 0:02:04.9]} 4... e6 {[%clk 0:03:03.4]} 5. Be2 {[%clk 0:02:06]}
5... Ne7 {[%clk 0:03:02.7]} 6. Nbd2 {[%clk 0:02:05]} 6... Nd7 {[%clk 0:03:02.8]}
7. Nb3 {[%clk 0:02:00.7]} 7... c5 {[%clk 0:02:51.2]} 8. dxc5 {[%clk 0:01:55.5]}
8... Nc6 {[%clk 0:02:51.9]} 9. Be3 {[%clk 0:01:54.5]} 9... Bg4 {[%clk 0:02:41]}
10. Nfd4 {[%clk 0:01:44.7]} 10... Bxe2 {[%clk 0:02:40.2]} 11. Qxe2 {[%clk
0:01:46.6]} 11... Nxd4 {[%clk 0:02:35.2]} 12. Bxd4 {[%clk 0:01:46.9]} 12... Rc8
{[%clk 0:02:21.3]} 13. Rd1 {[%clk 0:01:26.8]} 13... Bxc5 {[%clk 0:01:28.4]} 14.
Nxc5 {[%clk 0:01:16.6]} 14... Nxc5 {[%clk 0:01:29.2]} 15. c4 {[%clk 0:01:18.3]}
15... O-O {[%clk 0:01:28.5]} 16. O-O {[%clk 0:01:17.7]} 16... Qe7 {[%clk
0:00:32.2]} 17. cxd5 {[%clk 0:01:12.5]} 17... exd5 {[%clk 0:00:32.7]} 18. Rc1
{[%clk 0:01:10.8]} 18... b6 {[%clk 0:00:32.8]} 19. Rfd1 {[%clk 0:01:01.4]} 19...
g6 {[%clk 0:00:31.7]} 20. Qf3 {[%clk 0:00:52.8]} 20... Ne6 {[%clk 0:00:30.4]}
21. Be3 {[%clk 0:00:49.5]} 21... d4 {[%clk 0:00:27.6]} 22. Bd2 {[%clk
0:00:50.1]} 22... Rfd8 {[%clk 0:00:27.5]} 23. g3 {[%clk 0:00:31.1]} 23... Kg7
{[%clk 0:00:24.6]} 24. h4 {[%clk 0:00:32]} 24... h5 {[%clk 0:00:25.4]} 25. b4
{[%clk 0:00:29.8]} 25... b5 {[%clk 0:00:23.3]} 26. Rxc8 {[%clk 0:00:14.5]} 26...
Rxc8 {[%clk 0:00:24.1]} 27. Qd5 {[%clk 0:00:16.3]} 27... a6 {[%clk 0:00:22.2]}
28. a3 {[%clk 0:00:11.1]} 28... Rc7 {[%clk 0:00:19.3]} 29. Bg5 {[%clk
0:00:10.2]} 29... Nxg5 {[%clk 0:00:16.4]} 30. hxg5 {[%clk 0:00:11.4]} 30... Rd7
{[%clk 0:00:16.4]} 31. Qe4 {[%clk 0:00:09.9]} 31... Qxg5 {[%clk 0:00:13.4]} 32.
Rxd4 {[%clk 0:00:10.8]} 32... Re7 {[%clk 0:00:12.8]} 33. Rd5 {[%clk 0:00:08.1]}
33... Re6 {[%clk 0:00:12.3]} 34. Kg2 {[%clk 0:00:07.5]} 34... Qe7 {[%clk
0:00:11.2]} 35. Qd4 {[%clk 0:00:07.8]} 35... Qg5 {[%clk 0:00:10]} 36. Rc5 {[%clk
0:00:06.2]} 36... Qf5 {[%clk 0:00:06.1]} 37. Qf4 {[%clk 0:00:04.7]} 37... Qxf4
{[%clk 0:00:06.2]} 38. gxf4 {[%clk 0:00:06.6]} 38... f6 {[%clk 0:00:06.1]} 39.
Kf3 {[%clk 0:00:07]} 39... fxe5 {[%clk 0:00:04.2]} 40. fxe5 {[%clk 0:00:08.3]}
40... g5 {[%clk 0:00:05.5]} 41. Ke4 {[%clk 0:00:09.7]} 41... Kg6 {[%clk
0:00:05.6]} 42. Kd5 {[%clk 0:00:10.1]} 42... Kf5 {[%clk 0:00:06.5]} 43. Kd4
{[%clk 0:00:07.8]} 43... h4 {[%clk 0:00:05.1]} 44. Rc8 {[%clk 0:00:06.7]} 44...
Re7 {[%clk 0:00:05.5]} 45. Rf8+ {[%clk 0:00:07]} 45... Kg4 {[%clk 0:00:06.8]}
46. Ke4 {[%clk 0:00:04.8]} 46... h3 {[%clk 0:00:07.2]} 47. Rh8 {[%clk
0:00:03.7]} 47... Rf7 {[%clk 0:00:08.4]} 48. e6 {[%clk 0:00:03.6]} 48... Rxf2
{[%clk 0:00:08.9]} 49. Ke5 {[%clk 0:00:04.6]} 49... Kg3 {[%clk 0:00:07.6]} 50.
e7 {[%clk 0:00:03.8]} 50... Re2+ {[%clk 0:00:08.8]} 51. Kf6 {[%clk 0:00:05.4]}
51... g4 {[%clk 0:00:08.7]} 52. e8=Q {[%clk 0:00:02.8]} 52... Rxe8 {[%clk
0:00:09.5]} 53. Rxe8 {[%clk 0:00:04.7]} 53... h2 {[%clk 0:00:06.3]} 54. Rh8
{[%clk 0:00:05.8]} 54... Kg2 {[%clk 0:00:06]} 55. Kg5 {[%clk 0:00:06.7]} 55...
g3 {[%clk 0:00:07.3]} 56. Kf4 {[%clk 0:00:07.6]} 56... Kf2 {[%clk 0:00:08]} 57.
Rh3 {[%clk 0:00:07.4]} 57... g2 {[%clk 0:00:03.2]} 58. Rxh2 {[%clk 0:00:07.3]}
58... Kf1 {[%clk 0:00:04.8]} 59. Rxg2 {[%clk 0:00:03.6]} 59... Kxg2 {[%clk
0:00:06.3]} 60. Ke3 {[%clk 0:00:04.1]} 60... Kf1 {[%clk 0:00:06.6]} 61. Kd4
{[%clk 0:00:05.8]} 61... Ke2 {[%clk 0:00:08]} 62. Kc5 {[%clk 0:00:07.7]} 62...
Kd3 {[%clk 0:00:09.5]} 63. Kb6 {[%clk 0:00:09.6]} 1-0